[Event "Open Nuevo Centro. Jornada 2"]
[Site "Chess.com"]
[Date "2020.06.26"]
[Round "9"]
[White "Vega Gutiérrez, Sabrina"]
[Black "Remolar Gallen, Jose"]
[Result "1/2-1/2"]
[WhiteElo "2098"]
[BlackElo "2344"]
[TimeControl "180+2"]
[EndTime "12:05:57 PDT"]
[Termination "Partida en tablas por mutuo acuerdo"]

1. e4 {[%clk 0:03:01.9]} 1... c5 {[%clk 0:02:59.9]} 2. Nf3 {[%clk 0:03:02.6]}
2... d6 {[%clk 0:03:00.4]} 3. d4 {[%clk 0:03:04.2]} 3... cxd4 {[%clk 0:03:02.3]}
4. Qxd4 {[%clk 0:03:05.5]} 4... Nf6 {[%clk 0:02:55.5]} 5. Bb5+ {[%clk
0:02:58.6]} 5... Bd7 {[%clk 0:02:54.5]} 6. c4 {[%clk 0:03:00]} 6... e5 {[%clk
0:02:32.9]} 7. Qd3 {[%clk 0:02:56]} 7... Be7 {[%clk 0:02:32.9]} 8. Bg5 {[%clk
0:02:52.6]} 8... O-O {[%clk 0:02:34.1]} 9. Bxf6 {[%clk 0:02:34.8]} 9... gxf6
{[%clk 0:02:18.1]} 10. Nc3 {[%clk 0:02:31.5]} 10... Na6 {[%clk 0:02:06.9]}
1/2-1

[Event "Open Nuevo Centro. Jornada 2"]
[Site "Chess.com"]
[Date "2020.06.26"]
[Round "9"]
[White "Salvador Buiza, Victor"]
[Black "Montesinos Diaz, Luis"]
[Result "0-1"]
[WhiteElo "1760"]
[BlackElo "1960"]
[TimeControl "180+2"]
[EndTime "12:06:45 PDT"]
[Termination "Victoria de Gwiso_06 por tiempo"]

1. e4 {[%clk 0:03:01.9]} 1... c6 {[%clk 0:02:50.2]} 2. d4 {[%clk 0:03:02.2]}
2... d5 {[%clk 0:02:50.8]} 3. e5 {[%clk 0:03:03]} 3... c5 {[%clk 0:02:51.3]} 4.
dxc5 {[%clk 0:03:03.8]} 4... e6 {[%clk 0:02:50.8]} 5. Be3 {[%clk 0:03:03.6]}
5... Nd7 {[%clk 0:02:49.1]} 6. Bb5 {[%clk 0:03:01.3]} 6... Ne7 {[%clk
0:02:48.8]} 7. Nc3 {[%clk 0:02:51.6]} 7... Nc6 {[%clk 0:02:49]} 8. Nf3 {[%clk
0:02:52.1]} 8... Nxc5 {[%clk 0:02:42.1]} 9. O-O {[%clk 0:02:35.7]} 9... a6
{[%clk 0:02:37.6]} 10. Bxc6+ {[%clk 0:02:35.7]} 10... bxc6 {[%clk 0:02:39.5]}
11. Nd4 {[%clk 0:02:27.8]} 11... Bb7 {[%clk 0:02:33.4]} 0

[Event "Open Nuevo Centro. Jornada 2"]
[Site "Chess.com"]
[Date "2020.06.26"]
[Round "9"]
[White "Segarra Martinez, Axel"]
[Black "Clement Gómez, José Antonio"]
[Result "0-1"]
[WhiteElo "2230"]
[BlackElo "2499"]
[TimeControl "180+2"]
[EndTime "12:06:53 PDT"]
[Termination "Victoria de P4AD por tiempo"]

1. e4 {[%clk 0:03:01.9]} 1... c5 {[%clk 0:03:00.2]} 2. Nf3 {[%clk 0:03:03]} 2...
e6 {[%clk 0:03:01.4]} 3. d4 {[%clk 0:03:04.5]} 3... cxd4 {[%clk 0:03:03.1]} 4.
Nxd4 {[%clk 0:03:06.4]} 4... Nc6 {[%clk 0:03:03.9]} 5. Nc3 {[%clk 0:03:07.8]}
5... d6 {[%clk 0:03:04.9]} 6. Be3 {[%clk 0:03:06.8]} 6... Nf6 {[%clk 0:03:06.1]}
7. Be2 {[%clk 0:03:03.3]} 7... Be7 {[%clk 0:03:06.9]} 8. O-O {[%clk 0:03:04.5]}
8... O-O {[%clk 0:03:07.7]} 9. f4 {[%clk 0:03:02.4]} 9... Bd7 {[%clk 0:03:08.3]}
10. Kh1 {[%clk 0:03:03.2]} 10... Nxd4 {[%clk 0:03:08.5]} 11. Qxd4 {[%clk
0:03:03.3]} 11... Bc6 {[%clk 0:03:10.4]} 12. Rad1 {[%clk 0:03:03.2]} 12... Nd7
{[%clk 0:03:10.7]} 13. Bf3 {[%clk 0:02:43.7]} 13... e5 {[%clk 0:03:08.6]} 14.
Qd2 {[%clk 0:02:42.3]} 14... exf4 {[%clk 0:03:08.1]} 15. Bxf4 {[%clk 0:02:44.2]}
15... Ne5 {[%clk 0:03:09.4]} 16. Nd5 {[%clk 0:02:41.5]} 16... Bxd5 {[%clk
0:03:07.9]} 17. Qxd5 {[%clk 0:02:39.3]} 17... Qc7 {[%clk 0:02:56]} 18. c3 {[%clk
0:02:31.7]} 18... Rad8 {[%clk 0:02:54]} 0

[Event "Open Nuevo Centro. Jornada 2"]
[Site "Chess.com"]
[Date "2020.06.26"]
[Round "9"]
[White "Saiz Sapena, Veronica"]
[Black "Tormos Beltran, Maite"]
[Result "1-0"]
[WhiteElo "1555"]
[BlackElo "1456"]
[TimeControl "180+2"]
[EndTime "12:06:59 PDT"]
[Termination "Victoria de Titina1 por tiempo"]

1. e4 {[%clk 0:03:00.3]} 1... d5 {[%clk 0:02:59.6]} 2. exd5 {[%clk 0:02:59.2]}
2... Qxd5 {[%clk 0:03:00.3]} 3. Nf3 {[%clk 0:03:00.5]} 3... Bg4 {[%clk
0:02:59.3]} 4. Be2 {[%clk 0:03:01]} 4... Nf6 {[%clk 0:02:58.6]} 5. d3 {[%clk
0:03:00.5]} 5... c6 {[%clk 0:02:59.3]} 6. h3 {[%clk 0:03:01.3]} 6... Bh5 {[%clk
0:02:59]} 7. Nc3 {[%clk 0:03:01.9]} 7... Qd8 {[%clk 0:02:59]} 8. Ne5 {[%clk
0:02:58.5]} 8... Bxe2 {[%clk 0:02:55.9]} 9. Qxe2 {[%clk 0:02:59.1]} 9... e6
{[%clk 0:02:56]} 10. Bg5 {[%clk 0:02:55.8]} 10... Be7 {[%clk 0:02:55.8]} 11. O-O
{[%clk 0:02:50.6]} 11... O-O {[%clk 0:02:56.1]} 12. Ne4 {[%clk 0:02:42.8]} 12...
Nxe4 {[%clk 0:02:48.2]} 13. Bxe7 {[%clk 0:02:41.5]} 13... Qxe7 {[%clk
0:02:34.1]} 14. Qxe4 {[%clk 0:02:39.9]} 14... Nd7 {[%clk 0:00:59.6]} 15. Nf3
{[%clk 0:02:33.3]} 1

[Event "Open Nuevo Centro. Jornada 2"]
[Site "Chess.com"]
[Date "2020.06.26"]
[Round "9"]
[White "Gerona Maura, Jesus"]
[Black "Gimenez Saiz, Jose Raul"]
[Result "0-1"]
[WhiteElo "1734"]
[BlackElo "1541"]
[TimeControl "180+2"]
[EndTime "12:07:04 PDT"]
[Termination "Victoria de rango013 por tiempo"]

1. e4 {[%clk 0:03:01.9]} 1... d5 {[%clk 0:03:00.9]} 2. Nf3 {[%clk 0:03:00.9]}
2... dxe4 {[%clk 0:03:00.8]} 3. Ng5 {[%clk 0:03:01.8]} 3... Nf6 {[%clk
0:02:59.3]} 4. d3 {[%clk 0:03:02.6]} 4... Bg4 {[%clk 0:02:57.8]} 5. Be2 {[%clk
0:02:57.4]} 5... Bxe2 {[%clk 0:02:57.7]} 6. Qxe2 {[%clk 0:02:58.4]} 6... exd3
{[%clk 0:02:58.6]} 7. cxd3 {[%clk 0:02:59]} 7... h6 {[%clk 0:02:56.1]} 8. Nf3
{[%clk 0:02:56.1]} 8... Nc6 {[%clk 0:02:55.9]} 9. Nc3 {[%clk 0:02:55.1]} 9... e6
{[%clk 0:02:55.5]} 10. Bf4 {[%clk 0:02:50.7]} 10... Bd6 {[%clk 0:02:55.3]} 11.
Bg3 {[%clk 0:02:39.9]} 11... O-O {[%clk 0:02:51]} 12. O-O {[%clk 0:02:34.1]}
12... Bxg3 {[%clk 0:02:50.6]} 13. hxg3 {[%clk 0:02:29]} 13... Nd4 {[%clk
0:02:50.7]} 14. Nxd4 {[%clk 0:02:19.8]} 14... Qxd4 {[%clk 0:02:51.5]} 15. Nb5
{[%clk 0:02:19.7]} 15... Qd7 {[%clk 0:02:45.7]} 16. Nc3 {[%clk 0:02:03.5]} 16...
c5 {[%clk 0:02:43.1]} 0

[Event "Open Nuevo Centro. Jornada 2"]
[Site "Chess.com"]
[Date "2020.06.26"]
[Round "9"]
[White "Yatseta Fernandez, Marc Kazymyr"]
[Black "Reig Albero, Ferran"]
[Result "1-0"]
[WhiteElo "1503"]
[BlackElo "1804"]
[TimeControl "180+2"]
[EndTime "12:07:27 PDT"]
[Termination "Victoria de K_73 por jaque mate"]

1. d4 {[%clk 0:03:01.9]} 1... Nf6 {[%clk 0:02:58]} 2. c4 {[%clk 0:03:02.9]} 2...
e6 {[%clk 0:02:59.2]} 3. g3 {[%clk 0:03:03.8]} 3... d5 {[%clk 0:03:00]} 4. Bg2
{[%clk 0:03:05]} 4... Bb4+ {[%clk 0:03:00.8]} 5. Bd2 {[%clk 0:03:05.1]} 5... Be7
{[%clk 0:03:01]} 6. Nf3 {[%clk 0:03:06.7]} 6... O-O {[%clk 0:03:01.3]} 7. O-O
{[%clk 0:03:03.9]} 7... c6 {[%clk 0:03:02.1]} 8. Bf4 {[%clk 0:03:02.7]} 8... b6
{[%clk 0:03:02.8]} 9. Nbd2 {[%clk 0:03:01.9]} 9... Nbd7 {[%clk 0:03:03.3]} 10.
a3 {[%clk 0:03:00.7]} 10... Bb7 {[%clk 0:03:03.8]} 11. b4 {[%clk 0:03:01]} 11...
c5 {[%clk 0:03:03.8]} 12. dxc5 {[%clk 0:02:55.6]} 12... bxc5 {[%clk 0:03:04.8]}
13. bxc5 {[%clk 0:02:56]} 13... Nxc5 {[%clk 0:02:59.6]} 14. Rb1 {[%clk
0:02:45.8]} 14... Ba6 {[%clk 0:02:52.9]} 15. Ne5 {[%clk 0:02:43.7]} 15... Rc8
{[%clk 0:02:48.4]} 16. Nb3 {[%clk 0:02:24.3]} 16... dxc4 {[%clk 0:01:17.1]} 17.
Nxc5 {[%clk 0:02:18.4]} 17... Qxd1 {[%clk 0:01:03.6]} 18. Rfxd1 {[%clk 0:02:18]}
18... Bxc5 {[%clk 0:01:04.4]} 19. a4 {[%clk 0:02:08.5]} 19... Rfd8 {[%clk
0:01:01.9]} 20. Rxd8+ {[%clk 0:02:04.9]} 20... Rxd8 {[%clk 0:01:02.3]} 21. Nc6
{[%clk 0:02:04.5]} 21... Rd7 {[%clk 0:00:57.3]} 22. Rb8+ {[%clk 0:02:02.6]}
22... Bf8 {[%clk 0:00:57.1]} 23. Bd6 {[%clk 0:01:56.1]} 23... Rxd6 {[%clk
0:00:56.9]} 24. Ne7+ {[%clk 0:01:56.7]} 24... Kh8 {[%clk 0:00:55.6]} 25. Rxf8+
{[%clk 0:01:58.6]} 25... Ng8 {[%clk 0:00:55]} 26. Rxg8# {[%clk 0:01:59.5]} 1

[Event "Open Nuevo Centro. Jornada 2"]
[Site "Chess.com"]
[Date "2020.06.26"]
[Round "9"]
[White "Alvarez Usina, Jordi"]
[Black "URSARIU, NIKOLAS VICTOR"]
[Result "0-1"]
[WhiteElo "1155"]
[BlackElo "1001"]
[TimeControl "180+2"]
[EndTime "12:07:41 PDT"]
[Termination "Victoria de NikolasVictor por tiempo"]

1. d4 {[%clk 0:03:01.4]} 1... d5 {[%clk 0:03:00.5]} 2. Bf4 {[%clk 0:03:00.9]}
2... Nc6 {[%clk 0:02:52.7]} 3. e3 {[%clk 0:03:00.2]} 3... Bf5 {[%clk 0:02:49.4]}
4. Nf3 {[%clk 0:02:59.2]} 4... e6 {[%clk 0:02:47.8]} 5. c3 {[%clk 0:02:58.7]}
5... Nf6 {[%clk 0:02:43.7]} 6. Nbd2 {[%clk 0:02:58.2]} 6... Bd6 {[%clk
0:02:42.6]} 7. Ne5 {[%clk 0:02:57.8]} 7... Bxe5 {[%clk 0:02:35.9]} 8. dxe5
{[%clk 0:02:56.6]} 8... Nd7 {[%clk 0:02:34.8]} 9. Nf3 {[%clk 0:02:54.7]} 9...
Bg4 {[%clk 0:02:28.6]} 10. Be2 {[%clk 0:02:54.4]} 10... Bxf3 {[%clk 0:02:27.2]}
11. Bxf3 {[%clk 0:02:54]} 11... Ndxe5 {[%clk 0:02:29.1]} 12. Bxe5 {[%clk
0:02:53.2]} 12... Nxe5 {[%clk 0:02:31]} 13. Be2 {[%clk 0:02:53.8]} 13... O-O
{[%clk 0:02:29.9]} 14. Bd3 {[%clk 0:02:49.8]} 14... Nc6 {[%clk 0:02:28.4]} 15.
Bc2 {[%clk 0:02:47.2]} 15... Qf6 {[%clk 0:02:15.5]} 16. Qd3 {[%clk 0:02:44.9]}
16... g6 {[%clk 0:02:08.9]} 17. O-O-O {[%clk 0:02:36]} 17... Ne5 {[%clk
0:02:06.3]} 0

[Event "Open Nuevo Centro. Jornada 2"]
[Site "Chess.com"]
[Date "2020.06.26"]
[Round "9"]
[White "Valero Artagoitia, Sara"]
[Black "Elenkov Olmo, Ivan"]
[Result "1-0"]
[WhiteElo "581"]
[BlackElo "881"]
[TimeControl "180+2"]
[EndTime "12:07:45 PDT"]
[Termination "Victoria de saraartago por tiempo"]

1. e4 {[%clk 0:03:01.9]} 1... e5 {[%clk 0:02:59.1]} 2. Nf3 {[%clk 0:03:01]} 2...
Nc6 {[%clk 0:02:58.3]} 3. Bc4 {[%clk 0:02:55.8]} 3... h6 {[%clk 0:02:58.2]} 4.
O-O {[%clk 0:02:52.3]} 4... Nf6 {[%clk 0:02:55]} 5. h3 {[%clk 0:02:48.6]} 5...
Bc5 {[%clk 0:02:53.5]} 6. Nc3 {[%clk 0:02:47.8]} 6... O-O {[%clk 0:02:48.4]} 7.
d3 {[%clk 0:02:44.5]} 7... d6 {[%clk 0:02:46.7]} 8. a3 {[%clk 0:02:40.6]} 8...
Bd7 {[%clk 0:02:41.3]} 9. b4 {[%clk 0:02:36.7]} 9... Bd4 {[%clk 0:02:39]} 10.
Bd2 {[%clk 0:02:00.7]} 10... Bxc3 {[%clk 0:02:38.5]} 11. Bxc3 {[%clk 0:01:57.3]}
11... Qe7 {[%clk 0:02:31.9]} 12. a4 {[%clk 0:01:41.6]} 1

[Event "Open Nuevo Centro. Jornada 2"]
[Site "Chess.com"]
[Date "2020.06.26"]
[Round "9"]
[White "Rodriguez, Mathias"]
[Black "Aguado, Pablo Luis"]
[Result "1-0"]
[WhiteElo "1973"]
[BlackElo "1794"]
[TimeControl "180+2"]
[EndTime "12:07:51 PDT"]
[Termination "Victoria de niguil por abandono"]

1. e4 {[%clk 0:03:00.2]} 1... e5 {[%clk 0:02:56]} 2. Nf3 {[%clk 0:03:01.5]} 2...
Nf6 {[%clk 0:02:55.6]} 3. Bc4 {[%clk 0:03:00.8]} 3... Nxe4 {[%clk 0:02:55.5]} 4.
Nc3 {[%clk 0:03:02.3]} 4... Nxc3 {[%clk 0:02:49.1]} 5. dxc3 {[%clk 0:03:04.1]}
5... Be7 {[%clk 0:02:43.9]} 6. Nxe5 {[%clk 0:03:04.4]} 6... O-O {[%clk
0:02:44.7]} 7. Qf3 {[%clk 0:02:44.7]} 7... Bf6 {[%clk 0:02:42.4]} 8. Nxf7 {[%clk
0:02:36.3]} 8... Rxf7 {[%clk 0:02:39.7]} 9. O-O {[%clk 0:02:37.8]} 9... c6
{[%clk 0:02:33.8]} 10. Bxf7+ {[%clk 0:02:37]} 10... Kxf7 {[%clk 0:02:35.7]} 11.
Bg5 {[%clk 0:02:38.7]} 11... d5 {[%clk 0:02:35]} 12. Rae1 {[%clk 0:02:39.9]}
12... Nd7 {[%clk 0:02:22]} 13. Qh5+ {[%clk 0:02:40.5]} 13... Kf8 {[%clk
0:02:14]} 14. Be3 {[%clk 0:01:53.5]} 14... Kg8 {[%clk 0:01:31.6]} 15. Bf4 {[%clk
0:01:51.6]} 15... Nf8 {[%clk 0:01:26.1]} 16. Re8 {[%clk 0:01:50.7]} 16... Qd7
{[%clk 0:01:22.9]} 17. Rfe1 {[%clk 0:01:49.4]} 17... g6 {[%clk 0:01:20.6]} 18.
Qf3 {[%clk 0:01:46.3]} 18... Bg7 {[%clk 0:00:49.2]} 19. R1e7 {[%clk 0:01:46.6]}
19... Qf5 {[%clk 0:00:45.7]} 20. g4 {[%clk 0:01:39.8]} 20... Qxg4+ {[%clk
0:00:39.8]} 21. Qxg4 {[%clk 0:01:41.6]} 21... Bxg4 {[%clk 0:00:40.3]} 22. Rxa8
{[%clk 0:01:43.5]} 1

[Event "Open Nuevo Centro. Jornada 2"]
[Site "Chess.com"]
[Date "2020.06.26"]
[Round "9"]
[White "García Giménez, Santiago"]
[Black "Castellano López, Javier"]
[Result "0-1"]
[WhiteElo "1870"]
[BlackElo "1827"]
[TimeControl "180+2"]
[EndTime "12:08:23 PDT"]
[Termination "Victoria de its_xavi_official por abandono"]

1. e4 {[%clk 0:02:56.6]} 1... d5 {[%clk 0:02:57.8]} 2. exd5 {[%clk 0:02:56.1]}
2... Qxd5 {[%clk 0:02:57.4]} 3. Nc3 {[%clk 0:02:57.7]} 3... Qa5 {[%clk
0:02:58.1]} 4. b4 {[%clk 0:02:59.3]} 4... Qxb4 {[%clk 0:02:56.4]} 5. Rb1 {[%clk
0:03:00.9]} 5... Qd6 {[%clk 0:02:55]} 6. d4 {[%clk 0:03:01.5]} 6... c6 {[%clk
0:02:55.9]} 7. Nf3 {[%clk 0:03:02.8]} 7... Bg4 {[%clk 0:02:56.6]} 8. Be2 {[%clk
0:02:56.1]} 8... b6 {[%clk 0:02:51.9]} 9. h3 {[%clk 0:02:54.5]} 9... Bh5 {[%clk
0:02:52.4]} 10. O-O {[%clk 0:02:53.2]} 10... Nf6 {[%clk 0:02:52.1]} 11. Bg5
{[%clk 0:02:31]} 11... Nbd7 {[%clk 0:02:43.1]} 12. Qd2 {[%clk 0:02:28.2]} 12...
e6 {[%clk 0:02:42.9]} 13. Bf4 {[%clk 0:02:28.1]} 13... Qe7 {[%clk 0:02:25.3]}
14. Rfe1 {[%clk 0:02:27]} 14... Qd8 {[%clk 0:02:24.4]} 15. Ng5 {[%clk
0:02:17.3]} 15... Bxe2 {[%clk 0:02:23.2]} 16. Qxe2 {[%clk 0:02:17.9]} 16... Be7
{[%clk 0:02:21.2]} 17. d5 {[%clk 0:01:36.1]} 17... cxd5 {[%clk 0:02:16.2]} 18.
Nxf7 {[%clk 0:01:36.5]} 18... Kxf7 {[%clk 0:02:10.3]} 19. Qxe6+ {[%clk
0:01:37.4]} 19... Kf8 {[%clk 0:02:05.5]} 20. Bg3 {[%clk 0:01:33.9]} 20... Nc5
{[%clk 0:02:00.5]} 21. Qe2 {[%clk 0:01:34.1]} 21... Bd6 {[%clk 0:01:49.1]} 22.
Bxd6+ {[%clk 0:01:29.5]} 22... Qxd6 {[%clk 0:01:51]} 23. Nb5 {[%clk 0:01:31.1]}
23... Qd7 {[%clk 0:01:44]} 24. Qf3 {[%clk 0:01:28]} 24... h6 {[%clk 0:01:33]}
25. Rbd1 {[%clk 0:01:22.8]} 25... Kg8 {[%clk 0:01:30.7]} 26. Nd4 {[%clk
0:01:20.8]} 26... Kh7 {[%clk 0:01:14.1]} 27. c4 {[%clk 0:01:12]} 27... Rhe8
{[%clk 0:01:11.8]} 28. cxd5 {[%clk 0:01:08.9]} 28... Rxe1+ {[%clk 0:01:03.3]}
29. Rxe1 {[%clk 0:01:10.8]} 29... Qxd5 {[%clk 0:01:03.8]} 0

[Event "Open Nuevo Centro. Jornada 2"]
[Site "Chess.com"]
[Date "2020.06.26"]
[Round "9"]
[White "Zakharash, Georgii"]
[Black "Morata Briones, Carlos"]
[Result "1-0"]
[WhiteElo "1079"]
[BlackElo "873"]
[TimeControl "180+2"]
[EndTime "12:08:52 PDT"]
[Termination "Victoria de georgiizakharash por jaque mate"]

1. c4 {[%clk 0:03:01.9]} 1... e5 {[%clk 0:03:00.2]} 2. Nc3 {[%clk 0:03:01]} 2...
Qh4 {[%clk 0:02:58.3]} 3. Nf3 {[%clk 0:02:57]} 3... Qxc4 {[%clk 0:02:58.3]} 4.
Nxe5 {[%clk 0:02:50.9]} 4... Qe6 {[%clk 0:02:58.8]} 5. Nf3 {[%clk 0:02:49.5]}
5... c6 {[%clk 0:02:51.8]} 6. e4 {[%clk 0:02:48.1]} 6... Bc5 {[%clk 0:02:50.4]}
7. d4 {[%clk 0:02:43.2]} 7... Bb4 {[%clk 0:02:46.4]} 8. e5 {[%clk 0:02:39.1]}
8... f6 {[%clk 0:02:40.2]} 9. Be2 {[%clk 0:02:37.3]} 9... fxe5 {[%clk
0:02:40.3]} 10. Nxe5 {[%clk 0:02:36.4]} 10... Nf6 {[%clk 0:02:37.4]} 11. O-O
{[%clk 0:02:34.1]} 11... O-O {[%clk 0:02:34.9]} 12. Re1 {[%clk 0:02:32.8]} 12...
d5 {[%clk 0:02:11.8]} 13. Bf4 {[%clk 0:02:27.9]} 13... Ne4 {[%clk 0:01:56.8]}
14. Qc2 {[%clk 0:02:17.6]} 14... Nxc3 {[%clk 0:00:55.8]} 15. bxc3 {[%clk
0:02:16.2]} 15... Bd6 {[%clk 0:00:54.8]} 16. Nd3 {[%clk 0:02:12.4]} 16... Bxf4
{[%clk 0:00:53.5]} 17. Nxf4 {[%clk 0:02:12]} 17... Rxf4 {[%clk 0:00:53.7]} 18.
Ba6 {[%clk 0:02:02.4]} 18... bxa6 {[%clk 0:00:51.5]} 19. Rxe6 {[%clk 0:02:00.9]}
19... Bxe6 {[%clk 0:00:51.5]} 20. Re1 {[%clk 0:01:57.4]} 20... Rf6 {[%clk
0:00:48.7]} 21. Qe2 {[%clk 0:01:53.1]} 21... Kf7 {[%clk 0:00:47]} 22. Qh5+
{[%clk 0:01:47.8]} 22... g6 {[%clk 0:00:47.6]} 23. Qxh7+ {[%clk 0:01:46.9]}
23... Ke8 {[%clk 0:00:45.6]} 24. Qg8+ {[%clk 0:01:40.5]} 24... Rf8 {[%clk
0:00:43.8]} 25. Qxe6+ {[%clk 0:01:38.1]} 25... Kd8 {[%clk 0:00:43.3]} 26. Qd6+
{[%clk 0:01:36.2]} 26... Kc8 {[%clk 0:00:43.3]} 27. Qxf8+ {[%clk 0:01:34.9]}
27... Kb7 {[%clk 0:00:43.5]} 28. a4 {[%clk 0:01:33.2]} 28... a5 {[%clk
0:00:40.8]} 29. Re7+ {[%clk 0:01:30]} 29... Kb6 {[%clk 0:00:34.7]} 30. Qc8
{[%clk 0:01:26]} 30... a6 {[%clk 0:00:31.8]} 31. Qc7# {[%clk 0:01:25.3]} 1

[Event "Open Nuevo Centro. Jornada 2"]
[Site "Chess.com"]
[Date "2020.06.26"]
[Round "9"]
[White "Lopez Mateo, Juan Carlos"]
[Black "Silva Rodriguez, Fernando"]
[Result "0-1"]
[WhiteElo "2004"]
[BlackElo "2464"]
[TimeControl "180+2"]
[EndTime "12:09:03 PDT"]
[Termination "Victoria de HarnFer por tiempo"]

1. e4 {[%clk 0:03:01.9]} 1... d5 {[%clk 0:03:00.5]} 2. Nf3 {[%clk 0:03:02.6]}
2... dxe4 {[%clk 0:03:01.1]} 3. Ng5 {[%clk 0:03:01.4]} 3... Bf5 {[%clk
0:03:02.5]} 4. Nc3 {[%clk 0:03:00.1]} 4... Nf6 {[%clk 0:03:02.6]} 5. Bc4 {[%clk
0:02:49.5]} 5... e6 {[%clk 0:03:03.9]} 6. Qe2 {[%clk 0:02:44.1]} 6... Nc6 {[%clk
0:02:59]} 7. Bb5 {[%clk 0:02:21.1]} 7... Qd4 {[%clk 0:02:46.5]} 8. f3 {[%clk
0:02:11.5]} 8... exf3 {[%clk 0:02:40.7]} 9. Bxc6+ {[%clk 0:02:10.6]} 9... bxc6
{[%clk 0:02:40.9]} 10. Nxf3 {[%clk 0:00:39.8]} 10... Qd7 {[%clk 0:02:33.9]} 11.
Ne5 {[%clk 0:00:35.8]} 11... Qd6 {[%clk 0:02:31]} 12. d3 {[%clk 0:00:33.4]}
12... Nd5 {[%clk 0:02:27.3]} 13. Bd2 {[%clk 0:00:25.2]} 13... Be7 {[%clk
0:02:27.3]} 14. O-O-O {[%clk 0:00:21.3]} 14... O-O {[%clk 0:02:27.7]} 15. g4
{[%clk 0:00:18.4]} 15... Bg6 {[%clk 0:02:26.7]} 16. h4 {[%clk 0:00:17.9]} 16...
h6 {[%clk 0:02:20.8]} 17. Nxg6 {[%clk 0:00:18.2]} 17... fxg6 {[%clk 0:02:22.7]}
18. h5 {[%clk 0:00:18.2]} 18... g5 {[%clk 0:02:22.1]} 19. Ne4 {[%clk 0:00:18.7]}
19... Qe5 {[%clk 0:02:14.7]} 20. Kb1 {[%clk 0:00:14.9]} 20... Rab8 {[%clk
0:02:14]} 21. c3 {[%clk 0:00:09.4]} 21... Nf4 {[%clk 0:01:59.8]} 22. Qe3 {[%clk
0:00:09.5]} 22... Qb5 {[%clk 0:01:53.4]} 23. Bc1 {[%clk 0:00:08.5]} 23... Nd5
{[%clk 0:01:47.7]} 24. Qd4 {[%clk 0:00:09]} 24... Bf6 {[%clk 0:01:40.1]} 25.
Nxf6+ {[%clk 0:00:09]} 25... Rxf6 {[%clk 0:01:42]} 26. Rhf1 {[%clk 0:00:09.1]}
26... Nf4 {[%clk 0:01:35.8]} 27. b3 {[%clk 0:00:03.7]} 27... Ne2 {[%clk
0:01:31.2]} 0

[Event "Open Nuevo Centro. Jornada 2"]
[Site "Chess.com"]
[Date "2020.06.26"]
[Round "9"]
[White "Camison Zornoza, Cesar"]
[Black "Conejero Martínez, Víctor"]
[Result "1-0"]
[WhiteElo "1719"]
[BlackElo "1460"]
[TimeControl "180+2"]
[EndTime "12:09:11 PDT"]
[Termination "Victoria de cczchess por tiempo"]

1. e4 {[%clk 0:03:01.9]} 1... c5 {[%clk 0:02:59.8]} 2. d4 {[%clk 0:03:02.1]}
2... cxd4 {[%clk 0:02:59.9]} 3. c3 {[%clk 0:03:03.4]} 3... dxc3 {[%clk
0:02:59.7]} 4. Nxc3 {[%clk 0:03:04.7]} 4... Nc6 {[%clk 0:02:59.5]} 5. Nf3 {[%clk
0:03:05.7]} 5... d6 {[%clk 0:02:58.3]} 6. Bc4 {[%clk 0:03:05.1]} 6... Bg4 {[%clk
0:02:56.1]} 7. Bxf7+ {[%clk 0:03:03.8]} 7... Kxf7 {[%clk 0:02:55.5]} 8. Ng5+
{[%clk 0:03:04.9]} 8... Ke8 {[%clk 0:02:48.9]} 9. Qxg4 {[%clk 0:03:04.7]} 9...
Nf6 {[%clk 0:02:49]} 10. Qe6 {[%clk 0:02:55.8]} 10... Qd7 {[%clk 0:02:36.5]} 11.
Qf7+ {[%clk 0:02:51.3]} 11... Kd8 {[%clk 0:02:36.7]} 12. Ne6+ {[%clk 0:02:51.9]}
12... Kc8 {[%clk 0:02:26.3]} 13. Nxf8 {[%clk 0:02:52.6]} 13... Qg4 {[%clk
0:02:18]} 14. Qe6+ {[%clk 0:02:49.6]} 14... Kc7 {[%clk 0:01:28.2]} 15. Qxg4
{[%clk 0:02:22.7]} 15... Nxg4 {[%clk 0:01:22.6]} 16. Nd5+ {[%clk 0:02:21.9]}
16... Kd8 {[%clk 0:01:01.8]} 17. Ne6+ {[%clk 0:02:21.9]} 17... Kd7 {[%clk
0:01:02.3]} 18. Nxg7 {[%clk 0:02:22.2]} 18... Rhf8 {[%clk 0:00:59.3]} 19. O-O
{[%clk 0:02:21.5]} 19... e6 {[%clk 0:00:50.1]} 20. Ne3 {[%clk 0:02:20.4]} 20...
Nf6 {[%clk 0:00:48.6]} 21. Rd1 {[%clk 0:02:00.7]} 21... Nxe4 {[%clk 0:00:47.5]}
22. Ng4 {[%clk 0:01:39.4]} 22... Rg8 {[%clk 0:00:44.3]} 23. f3 {[%clk
0:01:28.8]} 23... Rxg7 {[%clk 0:00:37.9]} 24. h3 {[%clk 0:01:23.3]} 24... Ng3
{[%clk 0:00:35.2]} 25. Bf4 {[%clk 0:01:16.6]} 25... Nh5 {[%clk 0:00:33.6]} 26.
Bxd6 {[%clk 0:01:17]} 1